bitfinex/quotes_BTCUSD_20251202
["timestamp","ask_amount","ask_price","bid_price","bid_amount"]
[1764688321630,0.15855908,90155.0,90154.0,1.15741161]
[1764688322073,0.15855908,90155.0,90154.0,0.96971562]
[1764688322277,0.15855908,90155.0,90154.0,0.94893562]
[1764688322449,0.15855908,90155.0,90154.0,0.86244262]
[1764688322659,0.15755908,90155.0,90154.0,0.15402]
[1764688322864,0.15755908,90155.0,90149.0,0.01109274]
[1764688322865,0.01109262,90150.0,90144.0,0.09191]
[1764688323121,0.15855908,90155.0,90146.0,0.2329537]
[1764688323346,0.15855908,90155.0,90148.0,0.01109286]
[1764688323513,0.15855908,90155.0,90153.0,0.22184357]
[1764688323738,0.15755908,90155.0,90154.0,0.39483526]
[1764688323938,0.15755908,90155.0,90154.0,0.695651]
[1764688324302,0.05194908,90155.0,90154.0,0.695651]
[1764688324637,1e-08,90155.0,90154.0,0.75817399]
[1764688324829,1e-08,90155.0,90154.0,0.75917399]
[1764688325900,1e-08,90155.0,90154.0,0.75817399]
[1764688326418,0.22173621,90198.0,90162.0,0.98740099]
[1764688326771,0.00034234,90163.0,90162.0,0.68340599]
[1764688328794,0.00034234,90163.0,90162.0,0.639203]
[1764688329032,1.0002,90200.0,90162.0,0.639203]
[1764688329033,1e-08,90190.0,90189.0,2.12768653]
[1764688329189,1.0002,90200.0,90189.0,2.12768653]
[1764688329190,0.32934799,90200.0,90199.0,2.60725493]
[1764688329414,0.0351517,90200.0,90199.0,2.60725493]
[1764688329752,0.0351517,90200.0,90198.0,0.2217344]
[1764688329753,1e-08,90213.0,90212.0,2.60722298]
[1764688329953,1e-08,90213.0,90212.0,2.62550298]
[1764688330457,1e-08,90213.0,90212.0,1.59070798]
[1764688330797,1e-08,90213.0,90212.0,1.59170798]
[1764688331205,0.00100001,90213.0,90212.0,1.59870798]
[1764688331410,0.00100001,90213.0,90212.0,1.38566998]
[1764688332053,0.00100001,90213.0,90212.0,1.20071199]
[1764688332380,1e-08,90213.0,90212.0,0.78765499]
[1764688332579,1e-08,90213.0,90212.0,1.16821399]
[1764688332817,1e-08,90213.0,90212.0,1.23373698]
[1764688332937,1e-08,90213.0,90212.0,1.23073698]
[1764688333141,1e-08,90213.0,90212.0,1.23273698]
[1764688333343,0.0133474,90260.0,90220.0,1.61193632]
[1764688333344,1e-08,90221.0,90220.0,1.61193632]
[1764688334200,0.0002,90260.0,90259.0,0.22158455]
[1764688334407,0.00057989,90260.0,90259.0,0.22158455]
[1764688334660,0.00057989,90260.0,90259.0,0.54458455]
[1764688336216,0.00157989,90260.0,90259.0,0.54458455]
[1764688336865,0.00157989,90260.0,90259.0,2.48662854]
[1764688337075,1e-08,90260.0,90259.0,2.48662854]
[1764688337268,4.363e-05,90290.0,90289.0,2.54451092]
[1764688337521,0.0118,90300.0,90299.0,0.22148639]
[1764688337713,0.01181398,90300.0,90299.0,1.00440039]
[1764688337916,0.001107,90331.0,90319.0,0.54443734]
[1764688338145,0.001107,90331.0,90319.0,2.26614733]
[1764688338386,0.001107,90331.0,90328.0,0.23248604]
[1764688338543,0.00122081,90331.0,90330.0,0.86386238]
[1764688338741,0.00122081,90331.0,90330.0,0.92638537]
[1764688339119,0.00214339,90341.0,90330.0,0.92638537]
[1764688339120,0.00214339,90341.0,90340.0,2.60690886]
[1764688339424,0.005,90400.0,90389.0,2.32788685]
[1764688339690,0.005,90400.0,90389.0,2.34616685]
[1764688339691,0.00042325,90390.0,90389.0,2.34616685]
[1764688339893,0.005,90400.0,90392.0,0.6067815]
[1764688340079,0.00029265,90393.0,90392.0,2.6067815]
[1764688340303,0.00541585,90393.0,90392.0,2.63648327]
[1764688340884,0.00541585,90393.0,90392.0,2.6067815]
[1764688341302,0.00541585,90393.0,90390.0,0.23232658]
[1764688341303,0.00427011,90498.0,90412.0,0.60673256]
[1764688341304,0.00147902,90413.0,90412.0,0.60673256]
[1764688341507,0.00427011,90498.0,90412.0,0.60673256]
[1764688341508,0.26747982,90494.0,90429.0,2.54416798]
[1764688341654,0.01011372,90430.0,90429.0,2.02092597]
[1764688342053,0.01011372,90430.0,90429.0,1.737235]
[1764688342459,0.00093389,90485.0,90429.0,1.737235]
[1764688342460,0.00482606,90436.0,90435.0,2.6066763]
[1764688342664,0.22104724,90479.0,90453.0,0.2211093]
[1764688343052,0.22104724,90479.0,90445.0,0.01105644]
[1764688343053,0.00093389,90485.0,90484.0,0.323]
[1764688343248,0.005,90511.0,90497.0,1.44468699]
[1764688343445,0.00037913,90498.0,90497.0,1.93068827]
[1764688343714,13.74329156,90500.0,90499.0,2.3212729]
[1764688343936,13.67707757,90500.0,90499.0,2.3212729]
[1764688344178,11.14391373,90500.0,90499.0,2.38649594]
[1764688344392,11.11074989,90500.0,90499.0,2.3212729]
[1764688344594,11.05358605,90500.0,90499.0,2.3212729]
[1764688344799,13.52042221,90500.0,90499.0,2.3212729]
[1764688345013,12.96485707,90500.0,90499.0,2.35204154]
[1764688345228,12.67996698,90500.0,90499.0,2.38439358]
[1764688345451,11.97617414,90500.0,90499.0,2.38539358]
[1764688345662,11.769967,90500.0,90499.0,2.38539358]
[1764688345866,9.14653757,90500.0,90499.0,2.38439358]
[1764688346076,3.63845033,90500.0,90499.0,2.38439358]
[1764688346298,3.38517971,90500.0,90499.0,0.6075199]
[1764688346521,0.0002,90530.0,90529.0,2.60644667]
[1764688346777,4.395e-05,90590.0,90529.0,2.60644667]
[1764688346778,4.395e-05,90590.0,90589.0,0.22077735]
[1764688347016,0.00042301,90590.0,90589.0,0.74945457]
[1764688347247,0.02417896,90649.0,90589.0,0.74945457]
[1764688347248,0.09755,90655.0,90607.0,0.01103667]
[1764688347460,0.00021368,90610.0,90609.0,1.97741221]
[1764688348127,0.09776368,90610.0,90609.0,1.91703721]
[1764688348347,0.00021368,90610.0,90609.0,1.91703721]
[1764688348813,0.00021368,90610.0,90609.0,1.91803721]
[1764688349470,9e-05,90658.0,90609.0,1.91803721]
[1764688349471,9e-05,90658.0,90624.0,1.91703721]
[1764688349675,9e-05,90658.0,90620.0,0.22070174]
[1764688349676,0.23164233,90657.0,90626.0,1.92807157]
[1764688349909,0.00020353,90658.0,90633.0,1.92807071]
[1764688350120,0.00020353,90658.0,90638.0,1.91703721]
[1764688350327,0.00020353,90658.0,90629.0,0.22067965]
[1764688350328,0.00020353,90658.0,90639.0,1.91703721]
[1764688350540,0.00020353,90658.0,90641.0,1.91703721]
[1764688350776,4.406e-05,90690.0,90674.0,0.01102851]
[1764688350986,4.406e-05,90690.0,90664.0,1.91673368]
[1764688350987,0.01102669,90689.0,90664.0,1.91673368]
[1764688351237,0.00042228,90690.0,90527.0,0.12431365]
[1764688351238,0.0127474,90688.0,90658.0,0.01103046]
[1764688351441,0.0127474,90688.0,90647.0,0.323]
[1764688351442,0.00042228,90690.0,90672.0,0.01102876]
[1764688351693,0.00042228,90690.0,90669.0,0.01102912]
[1764688351694,0.00042228,90690.0,90683.0,0.2205485]
[1764688351897,0.00042228,90690.0,90682.0,0.01102754]
[1764688351898,0.00042228,90690.0,90682.0,1.91673368]
[1764688352117,0.00042228,90690.0,90681.0,0.01828]
[1764688352118,0.00042228,90690.0,90687.0,0.01092693]
[1764688352330,0.00042228,90690.0,90682.0,1.91673368]
[1764688352557,0.00042228,90690.0,90640.0,0.51255288]
[1764688352558,0.00042228,90690.0,90687.0,1.91673368]
[1764688352763,0.00042228,90690.0,90682.0,1.91673368]
[1764688353010,0.00042228,90690.0,90665.0,1.91673368]
[1764688353011,0.01102754,90682.0,90665.0,1.91673368]
[1764688353235,0.22058985,90666.0,90665.0,1.91673368]
[1764688353435,0.01103034,90659.0,90628.0,1.92776779]
[1764688353650,0.0110307,90656.0,90633.0,0.0110335]
[1764688353858,0.0110307,90656.0,90631.0,1.91673368]
[1764688353859,0.0110318,90647.0,90631.0,1.91673368]
[1764688354073,0.01103338,90634.0,90617.0,0.195189]
[1764688354274,0.06252299,90692.0,90614.0,0.01103582]
[1764688354275,0.51255288,90650.0,90614.0,0.01103582]
[1764688354482,0.01103314,90636.0,90617.0,0.01103545]
[1764688354695,0.01103204,90645.0,90615.0,0.0110357]
[1764688354696,0.01103411,90628.0,90615.0,1.91673368]
[1764688354917,0.01103496,90621.0,90615.0,1.91673368]
[1764688355126,0.01103533,90618.0,90615.0,1.91673368]
[1764688355347,0.01103411,90628.0,90615.0,1.91673368]
[1764688355606,0.01103484,90622.0,90615.0,1.91673368]
[1764688355813,0.01103484,90622.0,90614.0,0.00211353]
[1764688355814,0.01103046,90658.0,90628.0,1.91673368]
[1764688356027,0.01103046,90658.0,90616.0,0.01103557]
[1764688356028,0.01103216,90644.0,90616.0,0.01103557]
[1764688356247,0.04848,90667.0,90615.0,1.91673368]
[1764688356248,0.01103363,90632.0,90615.0,1.91673368]
[1764688356461,0.01103375,90631.0,90615.0,1.91673368]
[1764688356679,0.51255288,90640.0,90615.0,1.92776938]
[1764688356895,1.10278263,90680.0,90614.0,0.00211353]
[1764688356896,0.51255288,90670.0,90641.0,0.01103253]
[1764688357115,0.23166022,90650.0,90631.0,1.91673368]
[1764688357338,0.23166022,90650.0,90615.0,1.91673368]
[1764688357339,0.23169333,90638.0,90615.0,1.91673368]
[1764688357581,0.0127474,90649.0,90615.0,1.91673368]
[1764688357582,0.01103484,90622.0,90615.0,1.91673368]
[1764688357799,0.01832,90621.0,90615.0,1.91673368]
[1764688358022,0.001,90618.0,90615.0,1.91673368]
[1764688358470,0.01103533,90618.0,90615.0,1.91673368]
[1764688358690,0.23171246,90630.0,90615.0,1.91673368]
[1764688358946,0.01103533,90618.0,90615.0,1.91673368]
[1764688359161,0.001,90622.0,90617.0,1.91673368]
[1764688359614,0.001,90622.0,90618.0,0.02207067]
[1764688359828,0.001,90622.0,90621.0,0.22069939]
[1764688360041,0.22059084,90666.0,90637.0,1.91673368]
[1764688360255,0.01103119,90652.0,90640.0,1.91673368]
[1764688360475,0.01103387,90630.0,90616.0,1.91673368]
[1764688360695,0.0110335,90633.0,90618.0,1.91673368]
[1764688360905,0.01103168,90648.0,90620.0,1.91673368]
[1764688361118,0.01103204,90645.0,90625.0,0.22068931]
[1764688361320,0.01103302,90637.0,90627.0,1.91673368]
[1764688361535,0.01103302,90637.0,90621.0,0.01103496]
[1764688361536,0.0110329,90638.0,90629.0,1.91673368]
[1764688361665,0.0293518,90647.0,90631.0,0.01103375]
[1764688361873,0.01103241,90642.0,90633.0,1.91673368]
[1764688362100,0.01103326,90635.0,90615.0,1.91673368]
[1764688362313,0.01103472,90623.0,90617.0,1.91673368]
[1764688362535,0.51255288,90643.0,90617.0,1.91673368]
[1764688362536,0.01102864,90673.0,90654.0,0.01103095]
[1764688362755,0.01102864,90673.0,90655.0,1.91673368]
[1764688363025,0.01102864,90673.0,90652.0,0.01103119]
[1764688363026,0.01102839,90675.0,90653.0,1.240513]
[1764688363224,0.0310674,90672.0,90656.0,0.0110307]
[1764688363362,0.0310674,90672.0,90656.0,1.91673368]
[1764688363363,0.04209616,90672.0,90656.0,1.91673368]
[1764688363573,0.04209616,90672.0,90636.0,1.91673368]
[1764688363574,0.01103241,90642.0,90636.0,1.91673368]
[1764688363779,0.220658,90638.0,90637.0,1.91673368]
[1764688364099,0.22792893,90638.0,90637.0,1.81673368]
[1764688364260,0.34229893,90638.0,90637.0,1.81673368]
[1764688364458,0.34229893,90638.0,90637.0,0.34881368]
[1764688364675,0.06252299,90637.0,90636.0,0.00211353]
[1764688364890,0.17593299,90637.0,90636.0,0.00211353]
[1764688365082,0.17593299,90637.0,90636.0,0.00011353]
[1764688365083,0.09466772,90637.0,90636.0,0.00011353]
[1764688365284,0.11298772,90637.0,90636.0,0.00011353]
[1764688365497,0.17551071,90637.0,90636.0,0.00011353]
[1764688365696,0.04552,90654.0,90636.0,0.00011353]
[1764688365910,0.01832,90653.0,90637.0,0.348814]
[1764688366123,0.01103143,90650.0,90637.0,0.348814]
[1764688366467,0.22065595,90639.0,90637.0,0.348814]
[1764688367060,0.09467,90638.0,90637.0,0.348814]
[1764688367953,0.09467,90638.0,90637.0,0.350814]
[1764688368291,0.09467,90638.0,90637.0,0.348814]
[1764688368495,0.23168774,90640.0,90637.0,0.348814]
[1764688368496,0.01103131,90651.0,90637.0,0.348814]
[1764688368855,0.01103192,90646.0,90638.0,0.348814]
[1764688369124,0.01102985,90663.0,90644.0,0.348814]
[1764688369335,0.01102985,90663.0,90637.0,0.002]
[1764688369336,0.01103131,90651.0,90638.0,0.3598469]
[1764688369542,0.0127474,90650.0,90641.0,0.348814]
[1764688369750,0.01103131,90651.0,90640.0,0.348814]
[1764688369954,0.01103192,90646.0,90637.0,0.348814]
[1764688370165,0.22063609,90647.0,90637.0,0.350814]
[1764688370166,0.22064455,90644.0,90637.0,0.350814]
[1764688370381,1.10238777,90713.0,90658.0,0.01103046]
[1764688370593,1.10238777,90713.0,90671.0,0.348814]
[1764688370594,0.01832,90676.0,90671.0,0.348814]
[1764688370835,0.01832,90676.0,90665.0,0.348814]
[1764688371069,0.01832,90676.0,90655.0,0.04693]
[1764688371070,0.01103034,90659.0,90656.0,0.348814]
[1764688371275,0.01103034,90659.0,90600.0,0.51255288]
[1764688371276,0.01102937,90667.0,90637.0,0.348814]
[1764688371495,0.00827685,90672.0,90661.0,0.348814]
[1764688371704,0.01832,90685.0,90639.0,0.01832]
[1764688371705,0.0127474,90679.0,90646.0,0.01103192]
[1764688371874,0.0127474,90679.0,90643.0,0.01103229]
[1764688371875,0.01102937,90667.0,90652.0,0.01103119]
[1764688372077,0.01102949,90666.0,90655.0,0.01103083]
[1764688372237,0.01102766,90681.0,90665.0,0.01102961]
[1764688372612,0.01102779,90680.0,90669.0,0.2205812]
[1764688372845,0.01102779,90680.0,90672.0,0.348814]
[1764688373123,0.01102888,90671.0,90663.0,0.348814]
[1764688373459,0.01102997,90662.0,90653.0,0.348814]
[1764688373790,2.0,90681.0,90653.0,0.348814]
[1764688373791,0.011029,90670.0,90653.0,0.348814]
[1764688374032,0.22059943,90663.0,90655.0,0.064937]
[1764688374183,0.22061053,90658.0,90653.0,0.348814]
[1764688374384,0.22061829,90655.0,90653.0,0.348814]
[1764688374789,0.06252299,90654.0,90653.0,0.348814]
[1764688374982,0.06214294,90654.0,90653.0,0.348814]
[1764688375233,0.22062149,90653.0,90614.0,0.04693]
[1764688375432,0.23890149,90653.0,90652.0,0.34892753]
[1764688376298,0.22062149,90653.0,90652.0,0.34892753]
[1764688377142,0.22262149,90653.0,90652.0,0.34892753]
[1764688377547,0.21762149,90653.0,90652.0,0.34892753]
[1764688377767,0.002,90653.0,90652.0,0.34892753]
[1764688377956,2.0,90681.0,90652.0,0.34892753]
[1764688377957,0.01102949,90666.0,90653.0,0.56943549]
[1764688378187,2.0,90681.0,90653.0,0.56943549]
[1764688378188,2.0,90681.0,90663.0,0.01102985]
[1764688378384,2.0,90681.0,90661.0,0.3340301]
[1764688378385,0.01102839,90675.0,90661.0,0.348814]
[1764688378597,0.0110301,90661.0,90655.0,0.348814]
[1764688378902,0.01102924,90668.0,90653.0,0.348814]
[1764688379140,0.23162598,90664.0,90654.0,0.01103095]
[1764688379349,0.01103034,90659.0,90653.0,0.348814]
[1764688379487,0.01102973,90664.0,90653.0,0.348814]
[1764688379678,0.01103022,90660.0,90653.0,0.348814]
[1764688379878,0.22061817,90655.0,90653.0,0.348814]
[1764688380085,0.0110307,90656.0,90653.0,0.348814]
[1764688380086,0.19691905,90654.0,90653.0,0.348814]
[1764688380447,0.01102985,90663.0,90658.0,0.015117]
[1764688380615,0.0110307,90656.0,90653.0,0.348814]
[1764688380815,0.22061905,90654.0,90653.0,0.348814]
[1764688381020,0.02962842,90734.0,90680.0,0.2205558]
[1764688381219,0.04295,90750.0,90680.0,0.2205558]
[1764688381220,0.01102025,90742.0,90699.0,1.27158659]
[1764688381436,0.04295,90750.0,90709.0,0.66078528]
[1764688381593,0.01856,90780.0,90707.0,0.2315126]
[1764688381594,0.0002,90780.0,90755.0,0.54337353]
[1764688381909,0.0002,90780.0,90755.0,0.01836]
[1764688382115,0.0002,90780.0,90747.0,0.01101964]
[1764688382116,0.01101891,90753.0,90729.0,0.02938183]
[1764688382312,0.01101891,90753.0,90610.0,0.01101239]
[1764688382313,0.00041869,90756.0,90715.0,0.0184]
[1764688382517,0.22039146,90748.0,90728.0,0.01102195]
[1764688382721,0.00041869,90756.0,90715.0,0.0184]
[1764688382722,0.01102074,90738.0,90715.0,0.0184]
[1764688382929,0.01102159,90731.0,90690.0,0.51255288]
[1764688383137,0.22049296,90706.0,90691.0,0.01836]
[1764688383336,0.01102973,90664.0,90650.0,0.02754]
[1764688383540,0.01102791,90679.0,90651.0,0.02206263]
[1764688383746,0.04552,90692.0,90651.0,0.01404674]
[1764688383747,0.01103095,90654.0,90651.0,0.01404674]
[1764688384018,0.01103095,90654.0,90619.0,0.02754]
[1764688384019,0.01103143,90650.0,90619.0,0.0184]
[1764688384171,0.01103143,90650.0,90596.0,0.44151804]
[1764688384172,0.33099587,90636.0,90608.0,0.0220731]
[1764688384373,0.04552,90657.0,90599.0,0.02754]
[1764688384374,0.01103521,90619.0,90600.0,0.02207505]
[1764688384577,0.01103521,90619.0,90608.0,0.00037869]
[1764688384787,0.01103618,90611.0,90608.0,0.00037869]
[1764688384983,0.23175993,90611.0,90608.0,0.00037869]
[1764688385362,0.09605,90636.0,90608.0,0.00037869]
[1764688385566,0.2206517,90641.0,90617.0,0.01103545]
[1764688385776,0.09605,90653.0,90631.0,0.01103375]
[1764688386004,0.001,90654.0,90637.0,0.01103302]
[1764688386236,0.001,90654.0,90612.0,0.34480099]
[1764688386458,0.01103058,90657.0,90644.0,0.23167336]
[1764688386635,0.01102949,90666.0,90653.0,0.01103107]
[1764688386832,0.01103083,90655.0,90640.0,0.01311299]
[1764688387082,0.01103083,90655.0,90624.0,0.02754]
[1764688387083,0.01103131,90651.0,90637.0,0.22066]
[1764688387295,0.09774,90670.0,90653.0,0.01103107]
[1764688387296,0.23161368,90669.0,90653.0,0.01103107]
[1764688387500,0.0184,90665.0,90654.0,0.0220619]
[1764688387706,0.01102949,90666.0,90654.0,0.22061891]
[1764688387935,0.01102949,90666.0,90632.0,0.33100678]
[1764688387936,0.04552,90692.0,90674.0,0.01102851]
[1764688388143,0.04552,90730.0,90602.0,2.75930721]
[1764688388144,0.09774,90706.0,90680.0,0.23158262]
[1764688388360,0.22045369,90722.0,90699.0,0.01102547]
[1764688388581,0.23881759,90737.0,90711.0,0.01102402]
[1764688388790,0.09774,90745.0,90704.0,0.01102487]
[1764688388990,0.01102268,90722.0,90701.0,0.01102523]
[1764688389225,0.01102341,90716.0,90698.0,0.0110256]
[1764688389437,0.01101964,90747.0,90729.0,0.01102183]
[1764688389657,0.01101891,90753.0,90733.0,0.01102134]
[1764688389884,0.2203711,90756.0,90739.0,0.01102061]
[1764688390101,0.01102098,90736.0,90701.0,0.01102523]
[1764688390300,0.01102098,90736.0,90681.0,0.02754]
[1764688390301,0.01102098,90736.0,90692.0,0.0184]
[1764688390511,0.23144857,90733.0,90716.0,0.01102341]
[1764688390750,0.01113448,90736.0,90693.0,0.02754]
[1764688390751,0.0001135,90736.0,90734.0,0.2204244]
[1764688391011,4.416e-05,90790.0,90761.0,0.01101794]
[1764688391012,0.23131412,90786.0,90761.0,0.01101794]
[1764688391228,0.0003134,90780.0,90759.0,0.01101819]
[1764688391398,0.01093594,90762.0,90759.0,0.01101819]
[1764688391639,0.0003134,90780.0,90761.0,0.01101794]
[1764688391844,0.0003134,90780.0,90739.0,0.33061635]
[1764688391845,0.0003134,90780.0,90770.0,0.01101685]
[1764688392060,0.0003134,90780.0,90777.0,0.011016]
[1764688392264,0.0003134,90780.0,90774.0,0.01101637]
[1764688392477,0.01101612,90776.0,90753.0,0.01101891]
[1764688392687,0.01101843,90757.0,90731.0,0.131424]
[1764688392896,0.01101976,90746.0,90725.0,0.01102232]
[1764688393102,0.09774,90757.0,90734.0,0.001]
[1764688393306,0.0002,90780.0,90734.0,0.001]
[1764688393307,0.01101964,90747.0,90734.0,0.001]
[1764688393512,0.09774,90773.0,90732.0,0.01102146]
[1764688393513,0.01101867,90755.0,90732.0,0.01102146]
[1764688393727,0.01101855,90756.0,90730.0,0.01102171]
[1764688393932,0.01101843,90757.0,90731.0,0.002]
[1764688394170,0.09774,90773.0,90741.0,0.01102037]
[1764688394350,0.09774,90773.0,90738.0,0.01102074]
[1764688394351,0.22034698,90766.0,90749.0,0.0110194]
[1764688394564,0.01101867,90755.0,90732.0,0.0184]
[1764688394968,0.22040037,90744.0,90732.0,0.0184]
[1764688395295,0.04857,90761.0,90730.0,0.00037869]
[1764688395710,9e-05,90781.0,90730.0,0.00037869]
[1764688395711,0.01101843,90757.0,90736.0,0.01102098]
[1764688395840,0.0184,90769.0,90732.0,0.01302146]
[1764688395841,0.01102013,90743.0,90732.0,0.002]
[1764688396038,0.01102061,90739.0,90730.0,0.00037869]
[1764688396250,0.22043182,90731.0,90730.0,0.00037869]
[1764688396443,0.22043182,90731.0,90730.0,0.00137869]
[1764688396928,0.31817182,90731.0,90730.0,0.00037869]
[1764688397140,0.31817182,90731.0,90706.0,0.01102462]
[1764688397141,0.22049014,90707.0,90706.0,0.02204925]
[1764688397343,0.22050832,90700.0,90681.0,0.01102766]
[1764688397563,0.22050959,90699.0,90679.0,0.01102791]
[1764688397774,0.04894792,90707.0,90679.0,0.01102791]
[1764688397775,0.00037792,90707.0,90704.0,0.01102487]
[1764688397999,0.00037792,90707.0,90705.0,0.26094451]
[1764688398202,0.001,90739.0,90737.0,0.2204171]
[1764688398408,0.22030468,90784.0,90738.0,0.3414]
[1764688398627,0.04857,90840.0,90738.0,0.3414]
[1764688398628,0.0003134,90780.0,90773.0,0.01101649]
[1764688398829,0.0003134,90780.0,90761.0,0.01101794]
[1764688398830,0.0003134,90780.0,90759.0,0.22036361]
[1764688399040,0.011016,90777.0,90758.0,0.0184]
[1764688399295,0.0003134,90780.0,90681.0,0.19503712]
[1764688399296,0.01101782,90762.0,90737.0,0.01102086]
[1764688399502,0.01101952,90748.0,90730.0,0.164398]
[1764688399706,0.0003134,90780.0,90728.0,0.33402195]
[1764688399707,0.0002,90780.0,90760.0,0.22035918]
[1764688399908,0.01101612,90776.0,90760.0,0.01101806]
[1764688400112,0.01101624,90775.0,90759.0,0.33401819]
[1764688400330,0.0002,90780.0,90769.0,0.01101697]
[1764688400539,0.0002,90780.0,90767.0,0.01101721]
[1764688400741,0.0003134,90780.0,90767.0,0.01101721]
[1764688400948,0.0003134,90780.0,90775.0,0.01101624]
[1764688401154,0.0003134,90780.0,90773.0,0.22032916]
[1764688401155,0.0003134,90780.0,90773.0,0.01101649]
[1764688401369,0.0003134,90780.0,90779.0,0.22031527]
[1764688401582,0.00985382,90791.0,90789.0,0.543291]
[1764688401792,0.02071752,90795.0,90794.0,0.54327887]
[1764688401992,0.02071752,90795.0,90794.0,2.54327887]
[1764688402198,0.02071752,90795.0,90794.0,2.60580186]
[1764688402199,0.01367752,90795.0,90794.0,2.60580186]
[1764688402814,0.01367752,90795.0,90794.0,2.62420186]
[1764688403232,0.01367752,90795.0,90794.0,2.05014186]
[1764688403456,0.02,90852.0,90842.0,0.00549901]
[1764688403674,0.02,90852.0,90849.0,0.01100727]
[1764688403862,0.02,90852.0,90851.0,1.12566466]
[1764688404036,0.02,90852.0,90851.0,0.323]
[1764688404245,0.02,90852.0,90851.0,0.83160299]
[1764688405323,4.427e-05,90890.0,90889.0,0.54304863]
[1764688405550,4.427e-05,90890.0,90889.0,1.16769362]
[1764688405761,4.427e-05,90890.0,90889.0,1.04282192]
[1764688405914,4.427e-05,90890.0,90889.0,0.98802469]
[1764688406329,4.427e-05,90890.0,90889.0,0.75393576]
[1764688406505,4.427e-05,90890.0,90889.0,0.57925992]
[1764688406709,4.427e-05,90890.0,90889.0,0.67460692]
[1764688406913,4.427e-05,90890.0,90889.0,0.62105692]
[1764688407114,4.427e-05,90890.0,90889.0,0.50495092]
[1764688407376,4.427e-05,90890.0,90889.0,0.61818512]
[1764688407746,4.427e-05,90890.0,90889.0,0.62072679]
[1764688407958,4.427e-05,90890.0,90889.0,0.34293792]
[1764688408140,4.427e-05,90890.0,90889.0,0.04242435]
[1764688408487,4.427e-05,90890.0,90889.0,0.10494734]
[1764688408728,4.427e-05,90890.0,90889.0,0.91348037]
[1764688408922,4.427e-05,90890.0,90889.0,0.6945528]
[1764688409140,4.427e-05,90890.0,90889.0,0.69266146]
[1764688409301,9e-05,90904.0,90889.0,0.69266146]
[1764688409302,9e-05,90904.0,90899.0,1.60144085]
[1764688409468,9e-05,90904.0,90899.0,1.66396384]
[1764688409825,0.01237025,90900.0,90899.0,0.62803384]
[1764688410417,0.01099674,90936.0,90935.0,0.02248643]
[1764688410698,0.01099674,90936.0,90899.0,0.323]
[1764688410699,0.09774,90967.0,90906.0,0.01856]
[1764688410858,0.09774,90967.0,90889.0,0.001]
[1764688410859,0.01099553,90946.0,90929.0,0.01099759]
[1764688411087,0.01099638,90939.0,90910.0,0.01099989]
[1764688411262,0.01099589,90943.0,90918.0,0.01099892]
[1764688411639,0.0186,90982.0,90918.0,0.01099892]
[1764688411640,0.01099674,90936.0,90918.0,0.00037792]
[1764688411829,0.01099855,90921.0,90920.0,0.02248643]
[1764688412356,0.01099855,90921.0,90918.0,0.00037792]
[1764688412357,0.2199736,90920.0,90918.0,0.00037792]
[1764688412578,0.01100013,90908.0,90880.0,0.23107394]
[1764688412764,0.01099916,90916.0,90886.0,0.23105664]
[1764688412998,0.01100061,90904.0,90880.0,0.00037906]
[1764688413200,0.0186,90903.0,90880.0,0.00037906]
[1764688413350,0.01100206,90892.0,90880.0,0.00037906]
[1764688413550,0.04829,90881.0,90880.0,0.00037906]
[1764688413756,0.04829,90881.0,90854.0,0.01100667]
[1764688413757,0.01100642,90856.0,90831.0,0.01100945]
[1764688413964,0.011008,90843.0,90831.0,0.00037913]
[1764688414150,0.01100703,90851.0,90831.0,0.00037913]
[1764688414343,0.01100836,90840.0,90831.0,0.00037913]
[1764688414565,0.01100679,90853.0,90831.0,0.00037913]
[1764688414774,0.323,90892.0,90831.0,0.02239804]
[1764688414971,0.323,90892.0,90863.0,0.01100557]
[1764688414972,0.04829,90887.0,90863.0,0.01100557]
[1764688415166,0.04829,90887.0,90852.0,0.03321]
[1764688415167,0.04829,90887.0,90873.0,0.01100436]
[1764688415371,0.04829,90887.0,90864.0,0.02201091]
[1764688415372,0.32993374,90928.0,90876.0,0.011004]
[1764688415527,0.09943,90904.0,90877.0,0.02200776]
[1764688415893,0.09943,90904.0,90843.0,0.06252299]
[1764688415894,0.09943,90904.0,90861.0,0.01100582]
[1764688416064,0.09943,90904.0,90861.0,0.00037913]
[1764688416065,0.01100315,90883.0,90861.0,0.00037913]
[1764688416243,0.01100315,90883.0,90862.0,0.22011401]
[1764688416454,0.01100545,90864.0,90861.0,0.00037913]
[1764688416657,0.23111503,90864.0,90861.0,0.00037913]
[1764688416862,0.04958,90882.0,90864.0,0.01100545]
[1764688417078,0.04958,90882.0,90861.0,0.01138495]
[1764688417079,0.01100352,90880.0,90861.0,0.00037913]
[1764688417327,0.1088134,90881.0,90861.0,0.00037913]
[1764688417328,0.09781,90881.0,90861.0,0.00037913]
[1764688417540,0.04958,90896.0,90873.0,0.01100436]
[1764688417730,0.01100206,90892.0,90861.0,0.00037913]
[1764688417931,0.0186,90895.0,90876.0,0.011004]
[1764688418088,0.001,90883.0,90882.0,0.23106878]
[1764688418305,0.001,90883.0,90882.0,0.22006557]
[1764688418508,0.001,90883.0,90882.0,2.56507212]
[1764688418665,0.09781,90922.0,90903.0,0.01100073]
[1764688418864,0.09781,90922.0,90894.0,0.01100182]
[1764688418865,0.21998924,90914.0,90884.0,0.01100303]
[1764688419079,0.01099952,90913.0,90892.0,0.01100206]
[1764688419318,0.09781,90922.0,90868.0,0.323]
[1764688419319,0.09781,90922.0,90910.0,0.21999706]
[1764688419492,0.09781,90922.0,90909.0,0.01100001]
[1764688419493,0.09781,90922.0,90916.0,0.01099916]
[1764688419695,0.01099916,90916.0,90899.0,0.01100122]
[1764688419918,0.0109988,90919.0,90916.0,0.00037913]
[1764688420086,0.0109988,90919.0,90885.0,0.323]
[1764688420087,0.23104071,90894.0,90869.0,0.01100485]
[1764688420291,0.01100025,90907.0,90883.0,0.01100315]
[1764688420499,0.09781,90934.0,90916.0,0.01099916]
[1764688420701,0.0186,90933.0,90919.0,0.23097255]
[1764688420906,0.0186,90933.0,90916.0,0.01099916]
[1764688420907,0.1461,90930.0,90916.0,0.01099916]
[1764688421105,0.1461,90930.0,90913.0,0.01099952]
[1764688421106,0.1461,90930.0,90919.0,0.0109988]
[1764688421365,0.1461,90930.0,90920.0,0.01099868]
[1764688421540,0.01099831,90923.0,90898.0,0.01100134]
[1764688421771,0.01099783,90927.0,90920.0,0.00037951]
[1764688421990,0.01100073,90903.0,90875.0,0.01100412]
[1764688422197,0.01100073,90903.0,90882.0,0.01100327]
[1764688422198,0.01100097,90901.0,90882.0,0.01100327]
[1764688422398,0.01100097,90901.0,90875.0,0.00037989]
[1764688422399,0.09781,90903.0,90896.0,0.01100158]
[1764688422604,0.00023605,90908.0,90905.0,0.23100992]
[1764688423028,0.00023605,90908.0,90898.0,0.01100134]